[Event "HUN-ch Rapid 2019"]
[Site "Ajka"]
[Date "2019.07.19"]
[Round "3.13"]
[White "Marosi, Levente"]
[Black "Horvath, Adam"]
[Result "1-0"]
[ECO "B48"]
[WhiteElo "2225"]
[BlackElo "2517"]
[Annotator "ChessBase"]
[PlyCount "187"]
[EventDate "2019.07.18"]
[EventType "swiss"]
[EventCountry "HUN"]
[SourceTitle "playchess.com"]
[Source "ChessBase"]
[SourceQuality "1"]
[TimeControl "1200+5"]

1. e4 {[%emt 0:00:01]} c5 {[%emt 0:00:01]} 2. Nf3 {[%emt 0:00:02]} Nc6 {[%emt 0:00:01]} 3. d4 {[%emt 0:00:03]} cxd4 {[%emt 0:00:01]} 4. Nxd4 {[%emt 0:00:01]} e6 {[%emt 0:00:00]} 5. Nc3 {[%emt 0:00:05]} Qc7 {[%emt 0:00:01]} 6. Be3 {[%emt 0:00:02]} a6 {[%emt 0:00:02]} 7. Qf3 {[%emt 0:00:25]} Nf6 {[%emt 0:00:15]} 8. O-O-O {[%emt 0:01:17]} h5 {[%emt 0:00:13]} 9. Nxc6 {[%emt 0:03:09]} dxc6 {[%emt 0:00:31]} 10. Qg3 {[%emt 0:03:33]} e5 {[%emt 0:00:04]} 11. f3 {[%emt 0:00:06]} Be6 {[%emt 0:00:36]} 12. Qf2 {[%emt 0:00:21]} b5 {[%emt 0:00:24]} 13. Bc5 {[%emt 0:01:12]} Be7 {[%emt 0:02:57]} 14. g3 {[%emt 0:01:05]} O-O {[%emt 0:00:06]} 15. h4 {[%emt 0:01:06]} a5 {[%emt 0:00:36]} 16. Bh3 {[%emt 0:00:48]} Bxh3 {[%emt 0:00:19]} 17. Rxh3 {[%emt 0:00:03]} a4 {[%emt 0:01:11]} 18. Rhh1 {[%emt 0:01:56]} b4 {[%emt 0:00:28]} 19. Nb1 {[%emt 0:00:09]} Rab8 {[%emt 0:01:43]} 20. Rd3 {[%emt 0:00:59]} Rb5 {[%emt 0:00:48]} 21. Bxe7 {[%emt 0:00:02]} Qxe7 {[%emt 0:00:01]} 22. Rhd1 {[%emt 0:00:02]} c5 {[%emt 0:00:19]} 23. c4 {[%emt 0:01:21]} bxc3 {[%emt 0:00:36]} 24. Nxc3 {[%emt 0:00:03]} Rb4 {[%emt 0:00:18]} 25. a3 {[%emt 0:00:30]} Rd4 {[%emt 0:00:42]} 26. Ne2 {[%emt 0:00:22]} Nd7 {[%emt 0:02:31]} 27. Kb1 {[%emt 0:01:03]} Rxd3 {[%emt 0:03:16]} 28. Rxd3 {[%emt 0:00:01]} c4 {[%emt 0:00:17]} 29. Rd5 {[%emt 0:00:07]} Nf6 {[%emt 0:00:15]} 30. Rd1 {[%emt 0:00:59]} Rb8 {[%emt 0:00:08]} 31. Nc3 {[%emt 0:00:01]} Kh7 {[%emt 0:00:18]} 32. Kc1 {[%emt 0:00:05]} Qe8 {[%emt 0:00:54]} 33. Qc5 {[%emt 0:00:14]} Rc8 {[%emt 0:01:18]} 34. Qb5 {[%emt 0:00:25]} Qe6 {[%emt 0:00:05]} 35. Nxa4 {[%emt 0:00:18]} Qh3 {[%emt 0:00:16]} 36. Qxe5 {[%emt 0:00:09]} Ra8 {[%emt 0:00:41]} 37. Nc3 {[%emt 0:00:03]} Qg2 {[%emt 0:00:03]} 38. Qf5+ {[%emt 0:00:12]} Kg8 {[%emt 0:00:03]} 39. e5 {[%emt 0:00:08]} Ne8 {[%emt 0:00:30]} 40. Rd7 {[%emt 0:00:16]} Qg1+ {[%emt 0:00:20]} 41. Nd1 {[%emt 0:00:04]} c3 {[%emt 0:00:06]} 42. Qxf7+ {[%emt 0:00:07]} Kh7 {[%emt 0:00:01]} 43. Qxh5+ {[%emt 0:00:01]} Kg8 {[%emt 0:00:00]} 44. Qf7+ {[%emt 0:00:09]} Kh7 {[%emt 0:00:01]} 45. bxc3 {[%emt 0:00:14]} Qxg3 {[%emt 0:00:01]} 46. Qh5+ {[%emt 0:00:01]} Kg8 {[%emt 0:00:01]} 47. Qf7+ Kh7 48. Re7 {[%emt 0:00:16]} Nc7 {[%emt 0:00:32]} 49. Rxc7 {[%emt 0:00:09]} Qxe5 {[%emt 0:00:01]} 50. Re7 {[%emt 0:00:10]} Qg3 {[%emt 0:00:08]} 51. Qh5+ {[%emt 0:00:03]} Kg8 {[%emt 0:00:00]} 52. Re8+ {[%emt 0:00:00]} Rxe8 {[%emt 0:00:01]} 53. Qxe8+ {[%emt 0:00:01]} Kh7 {[%emt 0:00:01]} 54. Qe4+ {[%emt 0:00:01]} Kg8 {[%emt 0:00:01]} 55. a4 {[%emt 0:00:01]} Qd6 {[%emt 0:00:01]} 56. a5 {[%emt 0:00:04]} Qa3+ {[%emt 0:00:02]} 57. Kd2 {[%emt 0:00:01]} Qxa5 {[%emt 0:00:02]} 58. Ke2 {[%emt 0:00:02]} Qa2+ {[%emt 0:00:09]} 59. Ke3 {[%emt 0:00:05]} Qa1 {[%emt 0:00:03]} 60. Qd4 {[%emt 0:00:06]} Qc1+ {[%emt 0:00:02]} 61. Ke2 {[%emt 0:00:02]} Qc2+ {[%emt 0:00:02]} 62. Qd2 {[%emt 0:00:02]} Qf5 {[%emt 0:00:06]} 63. Ne3 {[%emt 0:00:01]} Qh3 {[%emt 0:00:05]} 64. Qd8+ {[%emt 0:00:08]} Kh7 {[%emt 0:00:02]} 65. Qg5 {[%emt 0:00:06]} Qh2+ {[%emt 0:00:02]} 66. Kd3 {[%emt 0:00:13]} Qd6+ {[%emt 0:00:03]} 67. Qd5 {[%emt 0:00:07]} Qa6+ {[%emt 0:00:01]} 68. c4 {[%emt 0:00:05]} Qa3+ {[%emt 0:00:02]} 69. Ke4 {[%emt 0:00:02]} Qe7+ {[%emt 0:00:04]} 70. Kd3 {[%emt 0:00:15]} Qa3+ {[%emt 0:00:00]} 71. Ke2 {[%emt 0:00:02]} Qb2+ {[%emt 0:00:02]} 72. Qd2 {[%emt 0:00:01]} Qe5 {[%emt 0:00:06]} 73. Qd3+ {[%emt 0:00:03]} Kh8 {[%emt 0:00:02]} 74. Qe4 {[%emt 0:00:06]} Qb2+ {[%emt 0:00:03]} 75. Nc2 {[%emt 0:00:02]} Qc3 {[%emt 0:00:04]} 76. h5 {[%emt 0:00:09]} Kg8 {[%emt 0:00:04]} 77. Qd5+ {[%emt 0:00:15]} Kh8 {[%emt 0:00:03]} 78. Ne3 {[%emt 0:00:02]} Qb2+ {[%emt 0:00:02]} 79. Kf1 {[%emt 0:00:05]} Qc1+ {[%emt 0:00:11]} 80. Kf2 {[%emt 0:00:01]} Qb2+ {[%emt 0:00:02]} 81. Kg3 {[%emt 0:00:01]} Qb8+ {[%emt 0:00:04]} 82. Kh3 {[%emt 0:00:13]} Qc8+ {[%emt 0:00:41]} 83. Ng4 {[%emt 0:00:03]} Qa6 {[%emt 0:00:14]} 84. Qf7 {[%emt 0:00:20]} Qa1 {[%emt 0:00:17]} 85. Kg2 {[%emt 0:00:12]} Qa2+ {[%emt 0:00:05]} 86. Kg3 {[%emt 0:00:01]} Qa1 {[%emt 0:00:06]} 87. Qf8+ {[%emt 0:00:08]} Kh7 {[%emt 0:00:01]} 88. Qf5+ {[%emt 0:00:01]} Kh8 {[%emt 0:00:03]} 89. Kg2 {[%emt 0:00:05]} Qa2+ {[%emt 0:00:04]} 90. Kh3 {[%emt 0:00:03]} Qxc4 {[%emt 0:00:10]} 91. h6 {[%emt 0:00:04]} gxh6 {[%emt 0:00:12]} 92. Qf6+ {[%emt 0:00:01]} Kg8 {[%emt 0:00:06]} 93. Nxh6+ {[%emt 0:00:02]} Kh7 {[%emt 0:00:00]} 94. Qf7+ {[%emt 0:00:03]} 1-0

[Event "HUN-ch Rapid 2019"]
[Site "Ajka"]
[Date "2019.07.19"]
[Round "3.14"]
[White "Mihok, Oliver"]
[Black "Medvegyne Balogh, Emese"]
[Result "1-0"]
[ECO "B01"]
[WhiteElo "2550"]
[BlackElo "2073"]
[Annotator "ChessBase"]
[PlyCount "77"]
[EventDate "2019.07.18"]
[EventType "swiss"]
[EventCountry "HUN"]
[SourceTitle "playchess.com"]
[Source "ChessBase"]
[SourceQuality "1"]
[TimeControl "1200+5"]

1. e4 {[%emt 0:00:03]} d5 {[%emt 0:00:01]} 2. exd5 {[%emt 0:00:02]} Qxd5 {[%emt 0:00:01]} 3. Nc3 {[%emt 0:00:01]} Qd6 {[%emt 0:00:01]} 4. d4 {[%emt 0:00:04]} c6 {[%emt 0:00:01]} 5. Nf3 {[%emt 0:00:13]} Nf6 {[%emt 0:00:03]} 6. Ne5 {[%emt 0:00:05]} Nbd7 {[%emt 0:00:06]} 7. Nc4 {[%emt 0:00:03]} Qc7 {[%emt 0:00:03]} 8. a4 {[%emt 0:00:16]} Nb6 {[%emt 0:00:35]} 9. Ne5 {[%emt 0:00:09]} Be6 {[%emt 0:01:13]} 10. a5 {[%emt 0:00:45]} Nbd7 {[%emt 0:00:13]} 11. Bf4 {[%emt 0:00:19]} Nxe5 {[%emt 0:00:27]} 12. Bxe5 {[%emt 0:00:09]} Qd7 {[%emt 0:00:11]} 13. h3 {[%emt 0:01:18]} g6 {[%emt 0:02:32]} 14. Bd3 {[%emt 0:00:45]} Bg7 {[%emt 0:00:12]} 15. Ne4 {[%emt 0:00:34]} O-O {[%emt 0:00:23]} 16. Nc5 {[%emt 0:00:11]} Qc8 {[%emt 0:00:02]} 17. O-O {[%emt 0:00:55]} Bf5 {[%emt 0:03:04]} 18. Bxf5 {[%emt 0:01:07]} gxf5 {[%emt 0:00:02]} 19. Qf3 {[%emt 0:00:20]} e6 {[%emt 0:06:55]} 20. Qg3 {[%emt 0:01:09]} Kh8 {[%emt 0:00:15]} 21. Qb3 {[%emt 0:00:09]} Nd7 {[%emt 0:01:00]} 22. Bxg7+ {[%emt 0:00:05]} Kxg7 {[%emt 0:00:01]} 23. Nxb7 {[%emt 0:00:08]} Rb8 {[%emt 0:00:34]} 24. Qg3+ {[%emt 0:01:00]} Kh8 {[%emt 0:00:10]} 25. a6 {[%emt 0:00:09]} Rg8 {[%emt 0:00:20]} 26. Qd6 {[%emt 0:00:19]} Nf6 {[%emt 0:00:14]} 27. Qe5 {[%emt 0:00:15]} Rg6 {[%emt 0:00:11]} 28. Nd6 {[%emt 0:01:40]} Qf8 {[%emt 0:00:11]} 29. Nxf7+ {[%emt 0:00:38]} Kg8 {[%emt 0:00:44]} 30. Nd6 {[%emt 0:00:59]} Nd7 {[%emt 0:00:23]} 31. Qf4 {[%emt 0:00:21]} Rb4 {[%emt 0:01:15]} 32. c3 {[%emt 0:00:59]} Rxb2 {[%emt 0:00:19]} 33. Nc4 {[%emt 0:00:50]} Rb5 {[%emt 0:00:16]} 34. Rab1 {[%emt 0:00:25]} Nf6 {[%emt 0:00:19]} 35. Ne5 {[%emt 0:00:18]} Rg7 {[%emt 0:00:19]} 36. Nxc6 {[%emt 0:00:17]} Rxb1 {[%emt 0:00:02]} 37. Rxb1 {[%emt 0:00:01]} Nd5 {[%emt 0:00:03]} 38. Qf3 {[%emt 0:00:10]} Qd6 {[%emt 0:00:12]} 39. Rb8+ {[%emt 0:00:33]} 1-0

[Event "HUN-ch Rapid 2019"]
[Site "Ajka"]
[Date "2019.07.19"]
[Round "3.15"]
[White "Acs, Marton"]
[Black "Egresi, Mate"]
[Result "0-1"]
[ECO "A06"]
[WhiteElo "2136"]
[BlackElo "2341"]
[Annotator "NA"]
[PlyCount "152"]
[EventDate "2019.07.18"]
[EventType "swiss"]
[EventCountry "HUN"]
[SourceTitle "playchess.com"]
[Source "ChessBase"]
[SourceQuality "1"]
[TimeControl "1200+5"]

1. Nf3 {[%emt 0:00:03]} d5 {[%emt 0:00:01]} 2. g3 {[%emt 0:00:02]} Nf6 {[%emt 0:00:01]} 3. Bg2 {[%emt 0:00:02]} Bf5 {[%emt 0:00:02]} 4. O-O {[%emt 0:00:04]} c6 {[%emt 0:00:01]} 5. d3 {[%emt 0:00:02]} e6 {[%emt 0:00:02]} 6. c4 {[%emt 0:00:03]} Be7 {[%emt 0:00:02]} 7. cxd5 {[%emt 0:00:04]} exd5 {[%emt 0:00:01]} 8. Nc3 {[%emt 0:00:04]} O-O {[%emt 0:00:04]} 9. Nd4 {[%emt 0:00:24]} Bg6 {[%emt 0:01:30]} 10. e4 {[%emt 0:00:11]} dxe4 {[%emt 0:00:58]} 11. dxe4 {[%emt 0:00:03]} Nbd7 {[%emt 0:00:17]} 12. Be3 {[%emt 0:06:24]} Ne5 {[%emt 0:00:18]} 13. f3 {[%emt 0:00:01]} Nc4 {[%emt 0:01:59]} 14. Bf2 {[%emt 0:00:03]} c5 {[%emt 0:02:59]} 15. Nf5 {[%emt 0:06:29]} Bxf5 {[%emt 0:01:40]} 16. exf5 {[%emt 0:00:03]} Nxb2 {[%emt 0:00:08]} 17. Qxd8 {[%emt 0:02:26]} Rfxd8 {[%emt 0:00:04]} 18. Rab1 {[%emt 0:00:16]} Rd2 {[%emt 0:01:20]} 19. Be1 {[%emt 0:01:06]} Rc2 {[%emt 0:00:37]} 20. Rf2 {[%emt 0:00:01]} Rxf2 {[%emt 0:01:10]} 21. Bxf2 {[%emt 0:00:02]} Nd3 {[%emt 0:00:08]} 22. Rxb7 {[%emt 0:00:07]} Bf8 {[%emt 0:02:06]} 23. Be3 {[%emt 0:02:02]} Re8 {[%emt 0:00:09]} 24. Bd2 {[%emt 0:00:01]} c4 {[%emt 0:00:06]} 25. Kf1 {[%emt 0:01:00]} Bc5 {[%emt 0:00:03]} 26. Na4 {[%emt 0:00:17]} Bf2 {[%emt 0:02:14]} 27. f4 {[%emt 0:00:22]} h5 {[%emt 0:01:27]} 28. Bf3 {[%emt 0:00:27]} Be1 {[%emt 0:01:45]} 29. Bxe1 {[%emt 0:00:08]} Rxe1+ {[%emt 0:00:03]} 30. Kg2 {[%emt 0:00:01]} Ng4 {[%emt 0:00:09]} 31. Rxa7 {[%emt 0:00:09]} Rc1 {[%emt 0:00:25]} 32. Bxg4 {[%emt 0:00:02]} hxg4 {[%emt 0:00:01]} 33. Rc7 {[%emt 0:00:01]} Rc2+ {[%emt 0:00:11]} 34. Kg1 {[%emt 0:00:01]} Ne1 {[%emt 0:00:10]} 35. Rc8+ {[%emt 0:00:03]} Kh7 {[%emt 0:00:01]} 36. Kf1 {[%emt 0:00:06]} Nf3 {[%emt 0:00:02]} 37. Nb6 {[%emt 0:00:04]} Nxh2+ {[%emt 0:00:26]} 38. Ke1 {[%emt 0:00:01]} Nf3+ {[%emt 0:00:01]} 39. Kd1 {[%emt 0:00:16]} Rd2+ {[%emt 0:00:11]} 40. Kc1 {[%emt 0:00:01]} Rxa2 {[%emt 0:00:01]} 41. Nxc4 {[%emt 0:00:10]} Rg2 {[%emt 0:00:02]} 42. Rc7 {[%emt 0:00:10]} Rg1+ {[%emt 0:00:02]} 43. Kb2 {[%emt 0:00:05]} Rxg3 {[%emt 0:00:08]} 44. Rxf7 {[%emt 0:00:02]} Kh6 {[%emt 0:00:04]} 45. Rd7 {[%emt 0:00:06]} Rg1 {[%emt 0:00:18]} 46. Ne3 {[%emt 0:00:02]} g3 {[%emt 0:00:05]} 47. Rd6+ {[%emt 0:00:01]} Kh7 {[%emt 0:00:03]} 48. Rg6 {[%emt 0:00:03]} Re1 {[%emt 0:00:14]} 49. Nc2 {[%emt 0:00:03]} Re2 {[%emt 0:00:05]} 50. Rxg3 {[%emt 0:00:04]} Nd4 {[%emt 0:00:08]} 51. Rh3+ {[%emt 0:00:01]} Kg8 {[%emt 0:00:01]} 52. Rc3 {[%emt 0:00:02]} Kf7 {[%emt 0:00:02]} 53. Kc1 {[%emt 0:00:03]} Nxf5 {[%emt 0:00:09]} 54. Kd1 {[%emt 0:00:06]} Rf2 {[%emt 0:00:02]} 55. Ke1 {[%emt 0:00:09]} Rxf4 {[%emt 0:00:02]} 56. Ke2 {[%emt 0:00:02]} g5 {[%emt 0:00:07]} 57. Rf3 {[%emt 0:00:05]} Re4+ {[%emt 0:00:12]} 58. Kf2 {[%emt 0:00:01]} Kg6 {[%emt 0:00:02]} 59. Ra3 {[%emt 0:00:06]} g4 {[%emt 0:00:02]} 60. Ne1 {[%emt 0:00:07]} Kg5 {[%emt 0:00:01]} 61. Ng2 {[%emt 0:00:03]} Rb4 {[%emt 0:00:02]} 62. Ra5 {[%emt 0:00:03]} Rb2+ {[%emt 0:00:02]} 63. Kg1 {[%emt 0:00:04]} Kf6 {[%emt 0:00:12]} 64. Ra6+ {[%emt 0:00:05]} Kg5 {[%emt 0:00:03]} 65. Ra5 {[%emt 0:00:01]} Kf6 {[%emt 0:00:00]} 66. Ra6+ {[%emt 0:00:00]} Ke5 {[%emt 0:00:02]} 67. Ra5+ {[%emt 0:00:03]} Ke4 {[%emt 0:00:11]} 68. Ra4+ {[%emt 0:00:04]} Nd4 {[%emt 0:00:01]} 69. Kh2 {[%emt 0:00:05]} Kf3 {[%emt 0:00:15]} 70. Rxd4 {[%emt 0:00:25]} Rxg2+ {[%emt 0:00:01]} 71. Kh1 {[%emt 0:00:01]} Re2 {[%emt 0:00:01]} 72. Rd1 {[%emt 0:00:04]} Kf2 {[%emt 0:00:04]} 73. Rg1 {[%emt 0:00:19]} Re8 {[%emt 0:00:15]} 74. Rg2+ {[%emt 0:00:08]} Kf3 {[%emt 0:00:01]} 75. Ra2 {[%emt 0:00:08]} Re1+ {[%emt 0:00:02]} 76. Kh2 {[%emt 0:00:01]} g3+ {[%emt 0:00:01]} 0-1

[Event "HUN-ch Rapid 2019"]
[Site "Ajka"]
[Date "2019.07.19"]
[Round "3.16"]
[White "Farago, Sandor"]
[Black "Borhy, Marcell"]
[Result "0-1"]
[ECO "A21"]
[WhiteElo "2210"]
[BlackElo "2382"]
[Annotator "NA"]
[PlyCount "86"]
[EventDate "2019.07.18"]
[EventType "swiss"]
[EventCountry "HUN"]
[SourceTitle "playchess.com"]
[Source "ChessBase"]
[SourceQuality "1"]
[TimeControl "1200+5"]

1. c4 {[%emt 0:00:01]} e5 {[%emt 0:00:03]} 2. Nc3 {[%emt 0:00:02]} d6 {[%emt 0:00:04]} 3. g3 {[%emt 0:00:02]} Nf6 {[%emt 0:00:17]} 4. Bg2 {[%emt 0:00:03]} Be7 {[%emt 0:00:02]} 5. Nf3 {[%emt 0:00:06]} c6 {[%emt 0:00:02]} 6. d3 {[%emt 0:00:26]} O-O {[%emt 0:00:05]} 7. O-O {[%emt 0:00:03]} h6 {[%emt 0:00:02]} 8. h3 {[%emt 0:00:06]} Be6 {[%emt 0:00:02]} 9. Rb1 {[%emt 0:00:10]} Nbd7 {[%emt 0:00:02]} 10. b4 {[%emt 0:00:04]} d5 {[%emt 0:00:15]} 11. cxd5 {[%emt 0:00:16]} cxd5 {[%emt 0:00:15]} 12. Bd2 {[%emt 0:00:22]} Rc8 {[%emt 0:00:06]} 13. a3 {[%emt 0:00:14]} Qc7 {[%emt 0:00:23]} 14. d4 {[%emt 0:00:19]} e4 {[%emt 0:00:11]} 15. Ne1 {[%emt 0:00:33]} Nb6 {[%emt 0:00:06]} 16. Rc1 {[%emt 0:00:12]} Nc4 {[%emt 0:00:07]} 17. Bf4 {[%emt 0:00:03]} Qd7 {[%emt 0:00:14]} 18. g4 {[%emt 0:00:38]} Nxa3 {[%emt 0:00:09]} 19. Qb3 {[%emt 0:00:20]} Nb5 {[%emt 0:00:19]} 20. Nxb5 {[%emt 0:00:54]} Rxc1 {[%emt 0:00:32]} 21. Bxc1 {[%emt 0:00:03]} Qxb5 {[%emt 0:00:02]} 22. Nc2 {[%emt 0:00:08]} Qxe2 {[%emt 0:00:31]} 23. b5 {[%emt 0:00:22]} Bd7 {[%emt 0:01:40]} 24. Na3 {[%emt 0:00:20]} Rc8 {[%emt 0:00:15]} 25. g5 {[%emt 0:00:23]} hxg5 {[%emt 0:00:12]} 26. Bxg5 {[%emt 0:00:02]} Qh5 {[%emt 0:00:57]} 27. Bxf6 {[%emt 0:00:16]} Bxf6 {[%emt 0:00:02]} 28. Nc2 {[%emt 0:00:12]} Be6 {[%emt 0:01:20]} 29. Re1 {[%emt 0:00:34]} Qg5 {[%emt 0:00:33]} 30. Re3 {[%emt 0:00:18]} Qf4 {[%emt 0:00:32]} 31. Qb2 {[%emt 0:00:17]} Bh4 {[%emt 0:00:52]} 32. Re2 {[%emt 0:00:53]} Qc7 {[%emt 0:01:22]} 33. Ne1 {[%emt 0:00:38]} Qc3 {[%emt 0:00:33]} 34. Qxc3 {[%emt 0:01:03]} Rxc3 {[%emt 0:00:03]} 35. Ra2 {[%emt 0:00:01]} e3 {[%emt 0:01:26]} 36. Nf3 {[%emt 0:01:06]} Bxf2+ {[%emt 0:00:17]} 37. Kf1 {[%emt 0:00:09]} Bf5 {[%emt 0:00:16]} 38. Ne5 {[%emt 0:00:12]} Rc1+ {[%emt 0:00:04]} 39. Ke2 {[%emt 0:00:01]} Re1+ {[%emt 0:00:01]} 40. Kf3 {[%emt 0:00:02]} Be4+ {[%emt 0:00:02]} 41. Kg4 {[%emt 0:00:03]} Rg1 {[%emt 0:00:11]} 42. Kf4 {[%emt 0:00:51]} Rxg2 {[%emt 0:00:08]} 43. Ng4 {[%emt 0:01:28]} Bg3+ {[%emt 0:00:03] Ra1} 0-1

[Event "HUN-ch Rapid 2019"]
[Site "Ajka"]
[Date "2019.07.19"]
[Round "3.17"]
[White "Kiss, Pal"]
[Black "Tamasi, Zoltan"]
[Result "1-0"]
[ECO "D26"]
[WhiteElo "2278"]
[BlackElo "1964"]
[Annotator "NA"]
[PlyCount "69"]
[EventDate "2019.07.18"]
[EventType "swiss"]
[EventCountry "HUN"]
[SourceTitle "playchess.com"]
[Source "ChessBase"]
[SourceQuality "1"]
[TimeControl "1200+5"]

1. d4 {[%emt 0:00:01]} d5 {[%emt 0:00:03]} 2. c4 {[%emt 0:00:02]} dxc4 {[%emt 0:00:28]} 3. Nf3 {[%emt 0:00:15]} Nf6 {[%emt 0:00:04]} 4. e3 {[%emt 0:00:09]} e6 {[%emt 0:00:07]} 5. Bxc4 {[%emt 0:00:03]} a6 {[%emt 0:00:16]} 6. a4 {[%emt 0:00:10]} c5 {[%emt 0:00:07]} 7. O-O {[%emt 0:00:05]} Nc6 {[%emt 0:01:06]} 8. Qe2 {[%emt 0:00:07]} Be7 {[%emt 0:00:15]} 9. Rd1 {[%emt 0:00:43]} cxd4 {[%emt 0:01:43]} 10. exd4 {[%emt 0:00:03]} O-O {[%emt 0:00:19]} 11. Nc3 {[%emt 0:00:02]} Nd5 {[%emt 0:00:49]} 12. Qe4 {[%emt 0:00:23]} Ncb4 {[%emt 0:00:54]} 13. Ne5 {[%emt 0:00:13]} b6 {[%emt 0:02:12]} 14. Nc6 {[%emt 0:01:19]} Nxc3 {[%emt 0:02:23]} 15. Nxe7+ {[%emt 0:04:48]} Qxe7 {[%emt 0:00:07]} 16. bxc3 {[%emt 0:00:01]} Bb7 {[%emt 0:00:04]} 17. Qe2 {[%emt 0:05:03]} Nd5 {[%emt 0:00:27]} 18. Bxd5 {[%emt 0:00:41]} Bxd5 {[%emt 0:00:02]} 19. c4 {[%emt 0:01:41]} Bb7 {[%emt 0:00:10]} 20. Ba3 {[%emt 0:00:20]} Qg5 {[%emt 0:00:18]} 21. f4 {[%emt 0:00:05]} Qxf4 {[%emt 0:00:24]} 22. Bxf8 {[%emt 0:00:03]} Rxf8 {[%emt 0:00:09]} 23. d5 {[%emt 0:00:36]} exd5 {[%emt 0:00:53]} 24. cxd5 {[%emt 0:00:01]} Qd6 {[%emt 0:00:01]} 25. Rac1 {[%emt 0:00:24]} h6 {[%emt 0:00:30]} 26. Qc4 {[%emt 0:00:12]} Rc8 {[%emt 0:01:35]} 27. Qxc8+ {[%emt 0:00:23]} Bxc8 {[%emt 0:00:01]} 28. Rxc8+ {[%emt 0:00:01]} Kh7 {[%emt 0:00:02]} 29. Rc6 {[%emt 0:00:03]} Qd7 {[%emt 0:00:01]} 30. d6 {[%emt 0:00:09]} Qg4 {[%emt 0:00:59]} 31. Rcc1 {[%emt 0:00:30]} Qd7 {[%emt 0:00:12]} 32. h3 {[%emt 0:00:01]} a5 {[%emt 0:01:34]} 33. Rd4 {[%emt 0:00:13]} Qe6 {[%emt 0:01:58]} 34. Kh1 {[%emt 0:00:02]} Qf6 {[%emt 0:00:29]} 35. Rdd1 {[%emt 0:00:37]} 1-0

[Event "HUN-ch Rapid 2019"]
[Site "Ajka"]
[Date "2019.07.19"]
[Round "3.18"]
[White "Forgacs, Attila"]
[Black "Nagy, Bence"]
[Result "0-1"]
[ECO "B90"]
[WhiteElo "2137"]
[BlackElo "2352"]
[Annotator "NA"]
[PlyCount "76"]
[EventDate "2019.07.18"]
[EventType "swiss"]
[EventCountry "HUN"]
[SourceTitle "playchess.com"]
[Source "ChessBase"]
[SourceQuality "1"]
[TimeControl "1200+5"]

1. e4 {[%emt 0:00:03]} c5 {[%emt 0:00:01]} 2. Nf3 {[%emt 0:00:01]} d6 {[%emt 0:00:03]} 3. d4 {[%emt 0:00:01]} cxd4 {[%emt 0:00:03]} 4. Nxd4 {[%emt 0:00:01]} Nf6 {[%emt 0:00:02]} 5. Nc3 {[%emt 0:00:02]} a6 {[%emt 0:00:02]} 6. Be3 {[%emt 0:00:02]} e5 {[%emt 0:00:05]} 7. Nb3 {[%emt 0:00:02]} Be6 {[%emt 0:00:03]} 8. f3 {[%emt 0:00:01]} h5 {[%emt 0:00:03]} 9. Qd2 {[%emt 0:00:02]} Nbd7 {[%emt 0:00:25]} 10. O-O-O {[%emt 0:00:04]} Rc8 {[%emt 0:00:26]} 11. Kb1 {[%emt 0:00:04]} Be7 {[%emt 0:00:20]} 12. Nd5 {[%emt 0:00:11]} Nxd5 {[%emt 0:00:20]} 13. exd5 {[%emt 0:00:02]} Bf5 {[%emt 0:00:03]} 14. Bd3 {[%emt 0:00:06]} Bxd3 {[%emt 0:00:11]} 15. Qxd3 {[%emt 0:00:01]} Bg5 {[%emt 0:00:14]} 16. g3 {[%emt 0:00:50]} O-O {[%emt 0:00:05]} 17. h4 {[%emt 0:00:21]} Bxe3 {[%emt 0:00:12]} 18. Qxe3 {[%emt 0:00:02]} a5 {[%emt 0:00:31]} 19. g4 {[%emt 0:01:30]} a4 {[%emt 0:02:08]} 20. Nc1 {[%emt 0:00:02]} Rc4 {[%emt 0:00:37]} 21. b3 {[%emt 0:01:04]} Rc5 {[%emt 0:01:26]} 22. b4 {[%emt 0:01:05]} Rc4 {[%emt 0:01:29]} 23. a3 {[%emt 0:00:01]} Qc7 {[%emt 0:00:25]} 24. Ne2 {[%emt 0:00:30]} Rxc2 {[%emt 0:00:25]} 25. Rc1 {[%emt 0:01:00]} Rc8 {[%emt 0:00:59]} 26. gxh5 {[%emt 0:01:00]} Nf6 {[%emt 0:00:43]} 27. Rhg1 {[%emt 0:01:49]} Kf8 {[%emt 0:01:01]} 28. h6 {[%emt 0:00:21]} gxh6 {[%emt 0:00:09]} 29. Qxh6+ {[%emt 0:01:17]} Ke7 {[%emt 0:00:02]} 30. Qe3 {[%emt 0:02:14]} Nxd5 {[%emt 0:01:14]} 31. Qd3 {[%emt 0:01:34]} Nc3+ {[%emt 0:00:17]} 32. Nxc3 {[%emt 0:00:11]} Rxc3 {[%emt 0:00:04]} 33. Qd2 {[%emt 0:00:36]} Rxc1+ {[%emt 0:00:04]} 34. Rxc1 {[%emt 0:00:07]} Qxc1+ {[%emt 0:00:02]} 35. Qxc1 {[%emt 0:00:02]} Rxc1+ {[%emt 0:00:02]} 36. Kxc1 {[%emt 0:00:01]} b5 {[%emt 0:00:11]} 37. Kd2 {[%emt 0:00:12]} d5 {[%emt 0:00:18]} 38. Ke3 {[%emt 0:00:16]} f5 {[%emt 0:00:26]} 0-1

[Event "HUN-ch Rapid 2019"]
[Site "Ajka"]
[Date "2019.07.19"]
[Round "3.19"]
[White "Bohus, Adam"]
[Black "Nemeth, Zoltan"]
[Result "0-1"]
[ECO "E17"]
[WhiteElo "2219"]
[BlackElo "2275"]
[Annotator "NA"]
[PlyCount "103"]
[EventDate "2019.07.18"]
[EventType "swiss"]
[EventCountry "HUN"]
[SourceTitle "playchess.com"]
[Source "ChessBase"]
[SourceQuality "1"]
[TimeControl "1200+5"]

1. d4 {[%emt 0:00:02]} Nf6 {[%emt 0:00:12]} 2. c4 {[%emt 0:00:02]} e6 {[%emt 0:00:01]} 3. Nf3 {[%emt 0:00:02]} b6 {[%emt 0:00:02]} 4. g3 {[%emt 0:00:02]} Bb7 {[%emt 0:00:02]} 5. Bg2 {[%emt 0:00:02]} Be7 {[%emt 0:00:01]} 6. O-O {[%emt 0:00:06]} O-O {[%emt 0:00:01]} 7. Re1 {[%emt 0:00:03]} Qc8 {[%emt 0:01:10]} 8. Nc3 {[%emt 0:00:20]} Ne4 {[%emt 0:00:02]} 9. Qc2 {[%emt 0:01:04]} f5 {[%emt 0:00:13]} 10. Bf1 {[%emt 0:03:49]} a5 {[%emt 0:01:25]} 11. Nd2 {[%emt 0:00:26]} Nxc3 {[%emt 0:00:56]} 12. bxc3 {[%emt 0:01:13]} d5 {[%emt 0:03:16]} 13. cxd5 {[%emt 0:00:45]} exd5 {[%emt 0:00:08]} 14. Bh3 {[%emt 0:02:37]} Qe6 {[%emt 0:01:06]} 15. Nf3 {[%emt 0:00:46]} Nd7 {[%emt 0:00:20]} 16. Bf4 {[%emt 0:00:27]} Rac8 {[%emt 0:02:05]} 17. Rab1 {[%emt 0:02:43]} h6 {[%emt 0:00:04]} 18. Ne5 {[%emt 0:00:45]} Nxe5 {[%emt 0:01:48]} 19. Bxe5 {[%emt 0:00:02]} Qg6 {[%emt 0:00:40]} 20. c4 {[%emt 0:01:01]} dxc4 {[%emt 0:01:20]} 21. Qxc4+ {[%emt 0:00:08]} Kh8 {[%emt 0:00:28]} 22. Bg2 {[%emt 0:00:59]} Bxg2 {[%emt 0:00:21]} 23. Kxg2 {[%emt 0:00:01]} Bd6 {[%emt 0:00:09]} 24. Qc6 {[%emt 0:01:41]} Rcd8 {[%emt 0:00:40]} 25. Rec1 {[%emt 0:00:24]} f4 {[%emt 0:02:30]} 26. Bxd6 {[%emt 0:00:34]} Rxd6 {[%emt 0:00:12]} 27. Qxc7 {[%emt 0:00:02]} fxg3 {[%emt 0:00:32]} 28. hxg3 {[%emt 0:00:01]} Qe4+ {[%emt 0:00:33]} 29. Kg1 {[%emt 0:00:08]} Rdf6 {[%emt 0:00:01]} 30. Qe5 {[%emt 0:01:34]} Qxe5 {[%emt 0:00:15]} 31. dxe5 {[%emt 0:00:02]} Rxf2 {[%emt 0:00:01]} 32. Rc2 {[%emt 0:00:02]} R2f5 {[%emt 0:00:12]} 33. e6 {[%emt 0:00:21]} b5 {[%emt 0:00:19]} 34. Rc7 {[%emt 0:00:14]} Re8 {[%emt 0:00:12]} 35. e7 {[%emt 0:00:10]} Re5 {[%emt 0:00:02]} 36. Kf2 {[%emt 0:00:05]} b4 {[%emt 0:00:09]} 37. a3 bxa3 {[%emt 0:00:10]} 38. Ra1 {[%emt 0:00:19]} R8xe7 {[%emt 0:00:09]} 39. Rxe7 {[%emt 0:00:04]} Rxe7 {[%emt 0:00:00]} 40. Rxa3 {[%emt 0:00:01]} Re5 {[%emt 0:00:01]} 41. Kf3 {[%emt 0:00:03]} g5 {[%emt 0:00:09]} 42. e4 {[%emt 0:00:14]} Kg7 {[%emt 0:00:08]} 43. Ke3 {[%emt 0:00:02]} Kf6 {[%emt 0:00:17]} 44. Kd4 {[%emt 0:00:00]} Rb5 {[%emt 0:00:09]} 45. Rc3 {[%emt 0:00:10]} Rb6 {[%emt 0:00:29]} 46. Kc5 {[%emt 0:00:07]} Ra6 {[%emt 0:00:06]} 47. Kd5 {[%emt 0:00:01]} a4 {[%emt 0:00:11]} 48. e5+ {[%emt 0:00:06]} Ke7 {[%emt 0:00:02]} 49. Ra3 {[%emt 0:00:08]} Ra5+ {[%emt 0:00:02]} 50. Kd4 {[%emt 0:00:05]} h5 {[%emt 0:00:06]} 51. g4 {[%emt 0:00:03]} hxg4 {[%emt 0:00:05]} 52. Rg3 0-1